fUSD/lending_fUSD_20240611
["ID","MTS","AMOUNT","RATE_DAILY","PERIOD"]
[329019743,1718064261913,155.59394758,0.00013925,2]
[329019745,1718064292774,215.10652378,0.00013925,2]
[329019772,1718064436155,-781.20007045,0.00014016,2]
[329019773,1718064436180,-6.49660488,0.00014017,2]
[329019778,1718064445176,-155.0,0.00014014,2]
[329019779,1718064445201,-532.85271283,0.00014015,2]
[329019780,1718064445222,-358.95424729,0.00014017,2]
[329019781,1718064445244,-510.88472325,0.0001414,2]
[329019782,1718064445267,-1000.0,0.00014263,2]
[329019783,1718064445288,-200.0,0.00014334,2]
[329019784,1718064445309,-300.0,0.00014339,2]
[329019785,1718064445586,-150.0,0.00014339,2]
[329019786,1718064445633,-3281.47985518,0.0001434,2]
[329019788,1718064453124,-1107.45014482,0.0001434,2]
[329019789,1718064453155,-202.19,0.0001434,2]
[329019790,1718064453184,-155.59394756,0.00014413,2]
[329019791,1718064453210,-2518.05857361,0.00014417,2]
[329019792,1718064454158,-1337.33567298,0.00014417,2]
[329019793,1718064460776,-1337.33567298,0.00014417,2]
[329019795,1718064465677,-1337.33567298,0.00014417,2]
[329019796,1718064470905,-1337.33567298,0.00014417,2]
[329019797,1718064478723,-1337.33567298,0.00014417,2]
[329019806,1718064576946,519.99,0.00012631,2]
[329019811,1718064632043,-365.45085217,0.00014238,2]
[329019812,1718064632055,-4007.69041779,0.00014239,2]
[329019813,1718064632072,-300.0,0.00014239,2]
[329019814,1718064632088,-6741.93979486,0.0001424,2]
[329019815,1718064632102,-289.39426598,0.0001424,2]
[329019816,1718064632115,-811.27023916,0.0001424,2]
[329019817,1718064632126,-1076.19306149,0.00014417,2]
[329019818,1718064632137,-258.91669935,0.00014457,2]
[329019819,1718064632151,-1076.81030007,0.00014457,2]
[329019820,1718064632170,-90.36300058,0.00014457,2]
[329019821,1718064632181,-150.0,0.00014491,2]
[329019822,1718064632193,-461.02046653,0.00014492,2]
[329019823,1718064632221,-1059.52953347,0.00014492,2]
[329019824,1718064632232,-2137.52758278,0.00014601,2]
[329019825,1718064632246,-389.84087267,0.00014601,2]
[329019826,1718064632260,-223.63154455,0.00014601,2]
[329019827,1718064632271,-500.0,0.00014724,2]
[329019828,1718064632283,-186.31,0.00014744,2]
[329019829,1718064632294,-159.692596,0.00014795,2]
[329019830,1718064632305,-499.99,0.00014895,2]
[329019831,1718064632318,-519.99,0.00014895,2]
[329019832,1718064632333,-150.99,0.00014899,2]
[329019833,1718064632344,-390.33825859,0.000149,2]
[329019834,1718064632360,-155.59394756,0.000149,2]
[329019835,1718064632372,-212.85990348,0.000149,2]
[329019836,1718064632400,-170.7902592,0.000149,2]
[329019837,1718064632413,-338.50006211,0.000149,2]
[329019838,1718064632426,-1293.24991265,0.000149,2]
[329019839,1718064632438,-162.79065026,0.000149,2]
[329019840,1718064632450,-1959.5378941,0.000149,2]
[329019841,1718064632497,-711.72882134,0.000149,2]
[329019842,1718064632511,-679.0,0.000149,2]
[329019843,1718064632569,-5478.68044488,0.000149,2]
[329019844,1718064632582,-250.0,0.00014935,2]
[329019845,1718064632594,-250.0,0.00014937,2]
[329019846,1718064632606,-1344.3126947,0.00014988,2]
[329019847,1718064632616,-8325.244,0.00014988,2]
[329019848,1718064632627,-1412.64957892,0.00014988,2]
[329019849,1718064632642,-299.6900001,0.00014988,2]
[329019850,1718064632656,-787.3844928,0.00014988,2]
[329019851,1718064632668,-317.83071982,0.0001499,2]
[329019852,1718064632680,-150.52,0.0001499,2]
[329019853,1718064632692,-150.52,0.0001499,2]
[329019854,1718064632705,-150.52,0.0001499,2]
[329019855,1718064632716,-150.52,0.0001499,2]
[329019856,1718064632727,-150.52,0.0001499,2]
[329019857,1718064632738,-150.52,0.0001499,2]
[329019858,1718064632750,-155.0,0.00014998,2]
[329019859,1718064632762,-158.25744131,0.00014998,2]
[329019860,1718064632774,-1219.2104629,0.00014998,2]
[329019861,1718064632787,-925.18791882,0.00014998,2]
[329019862,1718064632800,-896.40832532,0.00014998,2]
[329019863,1718064632820,-1300.06879292,0.00014998,2]
[329019864,1718064632833,-528.31814333,0.00014998,2]
[329019865,1718064632846,-448.44440051,0.00014998,2]
[329019866,1718064632860,-638.68202268,0.00014998,2]
[329019867,1718064632872,-155.0,0.00014998,2]
[329019868,1718064632884,-2685.5752161,0.00014998,2]
[329019869,1718064632910,-306.20467746,0.00014998,2]
[329019870,1718064632923,-72.61213135,0.00014998,2]
[329019871,1718064632934,-209.41336991,0.00014998,2]
[329019872,1718064632945,-190.11772376,0.00014998,2]
[329019873,1718064632977,-346.25662598,0.00014998,2]
[329019874,1718064632988,-155.0,0.00014998,2]
[329019875,1718064632999,-234.24959519,0.00014998,2]
[329019876,1718064633011,-449.12248201,0.00014999,2]
[329019877,1718064633034,-4944.27159682,0.00015,2]
[329019878,1718064633047,-6055.9025272,0.00015,2]
[329019879,1718064633060,-21559.1213533,0.00015,2]
[329019880,1718064633075,-551.24148495,0.00015,2]
[329019881,1718064633116,-341.31861389,0.00015,2]
[329019913,1718064637840,-4962.52051354,0.00015,2]
[329019914,1718064638157,-3730.36434643,0.00015,2]
[329019915,1718064638170,-8449.0,0.00015,2]
[329019916,1718064638182,-1599.77159946,0.00015,2]
[329019917,1718064638194,-261.10428232,0.00015,2]
[329019918,1718064638210,-5751.86552343,0.00015,2]
[329019919,1718064638241,-726.22550044,0.00015,2]
[329019920,1718064638254,-2212.16653691,0.00015,2]
[329019921,1718064638269,-372973.25465578,0.00015,2]
[329019922,1718064638402,-3912.81499996,0.00015,2]
[329019923,1718064638607,-488.84065323,0.00015,2]
[329019924,1718064638798,-2801.27030832,0.00015,2]
[329019951,1718064639256,-1e-08,0.00015,2]
[329020187,1718064641451,-2563.18626602,0.00015,2]
[329020250,1718064641861,-6364.39687151,0.00015,2]
[329020368,1718064642999,-316.6913999,0.00015,2]
[329020391,1718064643248,-1545.10742761,0.00015,2]
[329020394,1718064643262,-450.75887715,0.00015,2]
[329020396,1718064643276,-451.5,0.00015,2]
[329020398,1718064643289,-2264.26216506,0.00015,2]
[329020401,1718064643312,-1605.35180376,0.00015,2]
[329020425,1718064643604,-812891.08947126,0.00015,2]
[329020428,1718064643616,-130618.09410878,0.00015,2]
[329020430,1718064643627,-299.52170479,0.00015,2]
[329020432,1718064643640,-180.55500862,0.00015,2]
[329020433,1718064643652,-254.60930081,0.00015,2]
[329020435,1718064643664,-262.52303666,0.00015,2]
[329020437,1718064643675,-155.0,0.00015,2]
[329020439,1718064643686,-155.0,0.00015,2]
[329020441,1718064643696,-744.77764368,0.00015,2]
[329020443,1718064643708,-1520.55,0.00015216,2]
[329020445,1718064643720,-186.31,0.00015512,2]
[329020447,1718064643734,-420.0,0.00015596,2]
[329020449,1718064643747,-159.692596,0.00015616,2]
[329020451,1718064643757,-2500.0,0.00015641,2]
[329020453,1718064643768,-2500.0,0.00015641,2]
[329020455,1718064643779,-241.22781,0.0001569,2]
[329020457,1718064643792,-1520.55,0.00015941,2]
[329020459,1718064643804,-241.22782,0.00016,2]
[329020461,1718064643815,-1000.0,0.00016046,2]
[329020463,1718064643825,-8828.94716021,0.00016264,2]
[329020465,1718064643836,-241.22782,0.0001632,2]
[329020467,1718064643847,-159.692596,0.00016438,2]
[329020469,1718064643859,-300.0,0.00016485,2]
[329020471,1718064643870,-1805.05840051,0.000165,2]
[329020472,1718064643881,-241.22782,0.0001663,2]
[329020474,1718064643891,-166.13,0.00016631,2]
[329020476,1718064643903,-1520.55,0.00016665,2]
[329020479,1718064643915,-179.48,0.00016712,2]
[329020481,1718064643926,-167.0,0.00016864,2]
[329020483,1718064643937,-241.22781,0.0001694,2]
[329020484,1718064643949,-390.33825859,0.00017043,2]
[329020487,1718064643960,-4388.93,0.0001708,2]
[329020489,1718064643971,-587.0,0.00017082,2]
[329020491,1718064643985,-519.99,0.00017159,2]
[329020493,1718064643996,-241.22782,0.0001725,2]
[329020495,1718064644007,-159.692596,0.0001726,2]
[329020497,1718064644019,-1520.55,0.0001739,2]
[329020499,1718064644029,-8828.94716021,0.00017627,2]
[329020501,1718064644041,-1000.0,0.00017829,2]
[329020503,1718064644055,-300.0,0.00017855,2]
[329020505,1718064644066,-649.34168046,0.00018,2]
[329020507,1718064644077,-159.692596,0.00018082,2]
[329020509,1718064644088,-1631.74997474,0.0001841,2]
[329020511,1718064644100,-10468.90491151,0.0001844,2]
[329020513,1718064644112,-383.65016268,0.0001865,2]
[329020515,1718064644123,-823.0,0.0001871,2]
[329020517,1718064644135,-159.692596,0.00018904,2]
[329020519,1718064644146,-8828.94716021,0.00018991,2]
[329020521,1718064644156,-16584.67496625,0.00019,2]
[329020523,1718064644167,-411.5495904,0.00019,2]
[329020525,1718064644178,-155.0,0.00019,2]
[329020527,1718064644189,-6902.0,0.00019,2]
[329020529,1718064644201,-191.443,0.00019134,2]
[329020531,1718064644211,-150.52,0.00019168,2]
[329020533,1718064644222,-242.81968046,0.00019178,2]
[329020535,1718064644236,-500.0,0.00019178,2]
[329020537,1718064644247,-500.0,0.00019178,2]
[329020539,1718064644257,-306.86662497,0.00019178,2]
[329020541,1718064644268,-500.0,0.00019178,2]
[329020543,1718064644281,-634.61863324,0.00019178,2]
[329020545,1718064644292,-500.0,0.00019178,2]
[329020547,1718064644305,-500.0,0.00019178,2]
[329020548,1718064644316,-500.0,0.00019178,2]
[329020550,1718064644326,-500.0,0.00019178,2]
[329020552,1718064644337,-500.0,0.00019178,2]
[329020554,1718064644348,-374.0,0.00019178,2]
[329020556,1718064644360,-500.0,0.00019178,2]
[329020558,1718064644371,-500.0,0.00019178,2]
[329020560,1718064644383,-500.0,0.00019178,2]
[329020562,1718064644394,-467.69022894,0.00019178,2]
[329020564,1718064644405,-500.0,0.00019178,2]
[329020566,1718064644416,-389.9464942,0.00019178,2]
[329020568,1718064644427,-500.0,0.00019178,2]
[329020570,1718064644439,-500.0,0.00019178,2]
[329020572,1718064644450,-500.0,0.00019178,2]
[329020574,1718064644462,-500.0,0.00019178,2]
[329020576,1718064644477,-500.0,0.00019178,2]
[329020578,1718064644488,-500.0,0.00019178,2]
[329020580,1718064644501,-500.0,0.00019178,2]
[329020582,1718064644512,-500.0,0.00019178,2]
[329020584,1718064644523,-500.0,0.00019178,2]
[329020586,1718064644534,-500.0,0.00019178,2]
[329020588,1718064644549,-500.0,0.00019178,2]
[329020590,1718064644568,-500.0,0.00019178,2]
[329020592,1718064644581,-500.0,0.00019178,2]
[329020594,1718064644594,-500.0,0.00019178,2]
[329020596,1718064644606,-300.0,0.00019178,2]
[329020598,1718064644617,-500.0,0.00019178,2]
[329020600,1718064644629,-500.0,0.00019178,2]
[329020602,1718064644642,-500.0,0.00019178,2]
[329020604,1718064644654,-411.82224274,0.00019178,2]
[329020606,1718064644665,-465.01323652,0.00019178,2]
[329020608,1718064644676,-449.35897558,0.00019178,2]
[329020610,1718064644688,-201.32924951,0.00019178,2]
[329020612,1718064644699,-500.0,0.00019178,2]
[329020614,1718064644711,-416.53922809,0.00019178,2]
[329020616,1718064644723,-500.0,0.00019178,2]
[329020619,1718064644739,-500.0,0.00019178,2]
[329020620,1718064644751,-500.0,0.00019178,2]
[329020623,1718064644762,-500.0,0.00019178,2]
[329020625,1718064644773,-500.0,0.00019178,2]
[329020627,1718064644784,-500.0,0.00019178,2]
[329020628,1718064644797,-500.0,0.00019178,2]
[329020631,1718064644807,-500.0,0.00019178,2]
[329020632,1718064644817,-500.0,0.00019178,2]
[329020634,1718064644828,-500.0,0.00019178,2]
[329020636,1718064644840,-500.0,0.00019178,2]
[329020638,1718064644852,-500.0,0.00019178,2]
[329020640,1718064644863,-500.0,0.00019178,2]
[329020642,1718064644874,-500.0,0.00019178,2]
[329020644,1718064644886,-500.0,0.00019178,2]
[329020646,1718064644897,-500.0,0.00019178,2]
[329020648,1718064644908,-500.0,0.00019178,2]
[329020650,1718064644921,-283.4545393,0.00019178,2]
[329020652,1718064644931,-500.0,0.00019178,2]
[329020654,1718064644943,-500.0,0.00019178,2]
[329020656,1718064644953,-500.0,0.00019178,2]
[329020658,1718064644965,-500.0,0.00019178,2]
[329020659,1718064644976,-500.0,0.00019178,2]
[329020662,1718064644987,-500.0,0.00019178,2]
[329020664,1718064645003,-500.0,0.00019178,2]
[329020666,1718064645017,-500.0,0.00019178,2]
[329020668,1718064645030,-500.0,0.00019178,2]
[329020669,1718064645042,-500.0,0.00019178,2]
[329020670,1718064645057,-500.0,0.00019178,2]
[329020671,1718064645076,-390.33825859,0.00019186,2]
[329020672,1718064645090,-191.443,0.0001922,2]
[329020673,1718064645105,-191.443,0.00019307,2]
[329020674,1718064645121,-150.0,0.00019325,2]
[329020675,1718064645137,-191.443,0.00019396,2]
[329020676,1718064645147,-519.99,0.00019423,2]
[329020678,1718064645161,-191.443,0.00019484,2]
[329020680,1718064645178,-191.443,0.00019574,2]
[329020682,1718064645198,-1000.0,0.00019612,2]
[329020684,1718064645209,-167.0,0.00019648,2]
[329020686,1718064645221,-191.443,0.00019665,2]
[329020688,1718064645233,-159.692596,0.00019726,2]
[329020690,1718064645246,-191.443,0.00019756,2]
[329020692,1718064645260,-4388.93,0.00019819,2]
[329020694,1718064645271,-191.443,0.00019848,2]
[329020696,1718064645283,-250.0,0.00019873,2]
[329020698,1718064645299,-34431.65249716,0.000199,2]
[329020700,1718064645311,-191.443,0.00019941,2]
[329020702,1718064645323,-1779.11097085,0.0002,2]
[329020703,1718064645338,-155.0,0.0002,2]
[329020705,1718064645351,-866.6677805,0.0002,2]
[329020707,1718064645363,-1980.08690757,0.0002,2]
[329020709,1718064645376,-3888.23499441,0.0002,2]
[329020711,1718064645387,-6258.42600459,0.0002,2]
[329020713,1718064645400,-155.0,0.0002,2]
[329020715,1718064645413,-1010.86316582,0.0002,2]
[329020717,1718064645427,-187.42794197,0.0002,2]
[329020719,1718064645438,-7600.0,0.0002009,2]
[329020721,1718064645449,-226.69645122,0.000201,2]
[329020722,1718064645461,-1426.09,0.00020239,2]
[329020724,1718064645478,-8828.94716021,0.00020355,2]
[329020726,1718064645491,-350.0,0.00020421,2]
[329020728,1718064645504,-1152.0,0.00020493,2]
[329020731,1718064645525,-159.692596,0.00020548,2]
[329020732,1718064645542,-395.54297139,0.00020969,2]
[329020734,1718064645558,-11721.0,0.000213,5]
[329020736,1718064645575,-2252.0,0.000213,3]
[329020739,1718064645597,-390.33825859,0.00021329,2]
[329020741,1718064645616,-159.692596,0.0002137,2]
[329020743,1718064645627,-1000.0,0.00021394,2]
[329020745,1718064645639,-519.99,0.00021687,2]
[329020747,1718064645653,-8828.94716021,0.00021718,2]
[329020749,1718064645663,-223.12,0.00021918,2]
[329020751,1718064645673,-250.0,0.00021918,2]
[329020753,1718064645684,-1631.74997474,0.00021921,2]
[329020755,1718064645695,-790.03320351,0.00022,2]
[329020757,1718064645707,-383.65016268,0.000224,2]
[329020759,1718064645718,-1613.0,0.00022445,2]
[329020761,1718064645729,-8828.94716021,0.00023082,2]
[329020763,1718064645739,-390.33825859,0.00023471,2]
[329020765,1718064645750,-150.52,0.00023588,2]
[329020767,1718064645761,-1000.0,0.00023598,2]
[329020769,1718064645772,-1000.0,0.00023598,2]
[329020771,1718064645782,-1000.0,0.00023598,2]
[329020773,1718064645793,-1000.0,0.00023598,2]
[329020775,1718064645805,-1000.0,0.00023598,2]
[329020777,1718064645816,-1000.0,0.00023598,2]
[329020779,1718064645828,-1000.0,0.00023598,2]
[329020781,1718064645839,-1000.0,0.00023598,2]
[329020783,1718064645849,-1000.0,0.00023598,2]
[329020785,1718064645860,-1000.0,0.00023598,2]
[329020787,1718064645871,-1000.0,0.00023598,2]
[329020789,1718064645881,-1000.0,0.00023598,2]
[329020791,1718064645892,-1000.0,0.00023598,2]
[329020793,1718064645904,-1000.0,0.00023598,2]
[329020795,1718064645914,-1000.0,0.00023598,2]
[329020797,1718064645925,-1000.0,0.00023598,2]
[329020799,1718064645937,-1000.0,0.00023598,2]
[329020801,1718064645948,-1000.0,0.00023598,2]
[329020803,1718064645959,-1000.0,0.00023598,2]
[329020805,1718064645971,-1000.0,0.00023598,2]
[329020807,1718064645982,-1000.0,0.00023598,2]
[329020809,1718064645993,-1000.0,0.00023598,2]
[329020811,1718064646005,-1000.0,0.00023598,2]
[329020813,1718064646015,-1000.0,0.00023598,2]
[329020815,1718064646026,-1000.0,0.00023598,2]
[329020817,1718064646037,-1000.0,0.00023598,2]
[329020819,1718064646049,-1000.0,0.00023598,2]
[329020821,1718064646060,-1000.0,0.00023598,2]
[329020823,1718064646070,-1000.0,0.00023598,2]
[329020825,1718064646084,-1000.0,0.00023598,2]
[329020827,1718064646095,-1000.0,0.00023598,2]
[329020829,1718064646109,-1000.0,0.00023598,2]
[329020831,1718064646120,-1057.0,0.00023598,2]
[329020833,1718064646131,-519.99,0.00023951,2]
[329020835,1718064646143,-425.35728658,0.00024,3]
[329020837,1718064646154,-180.0,0.0002423,2]
[329020839,1718064646165,-214.22,0.00024384,2]
[329020841,1718064646175,-159.1,0.00024384,2]
[329020843,1718064646187,-156.46,0.00024384,2]
[329020845,1718064646197,-8828.94716021,0.00024445,2]
[329020847,1718064646209,-156.28126389,0.000245,2]
[329020849,1718064646219,-169.95,0.00024535,2]
[329020851,1718064646230,-169.95,0.00024555,2]
[329020853,1718064646241,-169.95,0.00024576,2]
[329020855,1718064646252,-509.0,0.00024584,2]
[329020857,1718064646264,-169.95,0.00024596,2]
[329020859,1718064646277,-169.95,0.00024616,2]
[329020862,1718064646295,-169.95,0.00024637,2]
[329020864,1718064646311,-169.95,0.00024657,2]
[329020866,1718064646323,-8487.39,0.00024658,4]
[329020868,1718064646336,-243.39,0.00024658,4]
[329020870,1718064646349,-317.83071982,0.00024788,2]
[329020872,1718064646361,-150.52,0.00024788,2]
[329020874,1718064646375,-150.52,0.00024788,2]
[329020876,1718064646386,-45567.18742847,0.00024798,2]
[329020895,1718064646586,-45567.18742846,0.00024798,2]
[329020896,1718064646598,-45567.18742846,0.00024798,2]
[329020899,1718064646608,-45567.18742846,0.00024798,2]
[329020900,1718064646619,-45567.18742846,0.00024798,2]
[329020903,1718064646632,-45567.18742846,0.00024798,2]
[329020905,1718064646642,-4507.58877151,0.00024799,2]
[329020907,1718064646653,-4507.5887715,0.00024799,2]
[329020909,1718064646663,-4507.5887715,0.00024799,2]
[329020910,1718064646672,-4507.5887715,0.00024799,2]
[329020912,1718064646683,-4507.5887715,0.00024799,2]
[329020914,1718064646693,-4507.5887715,0.00024799,2]
[329020917,1718064646704,-150.52,0.0002489,2]
[329020919,1718064646714,-6792.60300481,0.000249,2]
[329020921,1718064646725,-45567.18742846,0.000249,2]
[329020923,1718064646735,-4507.5887715,0.000249,2]
[329020925,1718064646745,-1077.57410634,0.000249,2]
[329020927,1718064646755,-166.13,0.00024947,2]
[329020929,1718064646765,-150.52,0.0002499,2]
[329020931,1718064646776,-150.52,0.0002499,2]
[329020933,1718064646786,-150.52,0.0002499,2]
[329020935,1718064646798,-150.52,0.0002499,2]
[329020937,1718064646809,-150.52,0.0002499,2]
[329020939,1718064646819,-150.52,0.0002499,2]
[329020941,1718064646829,-150.52,0.0002499,2]
[329020943,1718064646839,-10005.71259855,0.00025,2]
[329020944,1718064646851,-1276.67123089,0.00025,2]
[329020946,1718064646860,-225.04645167,0.00025,2]
[329020948,1718064646871,-706.630092,0.00025,2]
[329020950,1718064646881,-325.89141873,0.00025,2]
[329020952,1718064646892,-930.15071455,0.00025,2]
[329020955,1718064646907,-325.78398581,0.00025,2]
[329020957,1718064646918,-155.0,0.00025,2]
[329020959,1718064646929,-155.0,0.00025,2]
[329020961,1718064646941,-924070.09428721,0.00025,2]
[329020963,1718064646952,-155.0,0.00025,2]
[329020965,1718064646963,-158.98454596,0.00025,2]
[329020967,1718064646974,-155.57152469,0.00025,2]
[329020969,1718064646986,-150.0,0.00025,2]
[329020971,1718064646996,-150.52,0.00025004,2]
[329020973,1718064647008,-5077.0,0.00025014,2]
[329020975,1718064647018,-1000.0,0.00025205,2]
[329020977,1718064647030,-1631.74997474,0.00025431,2]
[329020979,1718064647040,-390.33825859,0.00025614,2]
[329020981,1718064647052,-191.11,0.0002589,2]
[329020983,1718064647062,-317.83071982,0.0002599,2]
[329020985,1718064647073,-23523.85341753,0.00026,5]
[329020987,1718064647084,-150.78181346,0.00026008,2]
[329020990,1718064647095,-322.26350227,0.000261,2]
[329020992,1718064647105,-158.87102006,0.00026107,2]
[329020994,1718064647116,-150.78181346,0.00026114,2]
[329020996,1718064647126,-154.43235661,0.00026123,2]
[329020997,1718064647137,-383.65016268,0.0002615,2]
[329021000,1718064647147,-322.26350227,0.00026207,2]
[329021002,1718064647158,-519.99,0.00026215,2]
[329021004,1718064647169,-166.66666666,0.00026247,2]
[329021006,1718064647179,-166.3496266,0.00026275,2]
[329021008,1718064647190,-322.26350227,0.00026279,2]
[329021010,1718064647201,-322.26350227,0.0002629,2]
[329021012,1718064647212,-14235.52,0.00026301,2]
[329021014,1718064647223,-158.87102006,0.00026321,2]
[329021016,1718064647234,-166.66666666,0.00026322,2]
[329021018,1718064647245,-322.26350227,0.00026387,2]
[329021020,1718064647255,-150.4868812,0.00026455,2]
[329021022,1718064647266,-5784.0,0.00026461,2]
[329021024,1718064647277,-5155.0,0.00026461,2]
[329021026,1718064647288,-38061.0,0.00026461,2]
[329021028,1718064647300,-290.0,0.00026461,2]
[329021030,1718064647311,-1467.0,0.00026461,2]
[329021032,1718064647322,-1116.521,0.00026461,2]
[329021034,1718064647333,-179.13473058,0.00026466,2]
[329021036,1718064647344,-322.26350227,0.00026479,2]
[329021038,1718064647356,-157.20854125,0.00026559,2]
[329021040,1718064647367,-45567.18742846,0.00026567,2]
[329021042,1718064647377,-4507.5887715,0.00026567,2]
[329021044,1718064647388,-2055.20344569,0.000266,2]
[329021046,1718064647399,-2959.65817659,0.00026609,2]
[329021048,1718064647411,-157.20854125,0.00026638,2]
[329021050,1718064647422,-157.20854125,0.0002669,2]
[329021053,1718064647435,-322.26350227,0.00026694,2]
[329021054,1718064647446,-158.87102006,0.00026695,2]
[329021057,1718064647457,-3000.0,0.000268,2]
[329021059,1718064647470,-157.20854125,0.00026857,2]
[329021061,1718064647481,-157.20854125,0.00026902,2]
[329021063,1718064647492,-157.94190174,0.00026922,2]
[329021065,1718064647503,-157.20854125,0.00026981,2]
[329021067,1718064647514,-157.20854125,0.00026984,2]
[329021069,1718064647525,-154.95775928,0.00026984,2]
[329021071,1718064647536,-150.52,0.0002699,2]
[329021073,1718064647551,-4027.10358314,0.00027,2]
[329021075,1718064647563,-166.66666666,0.00027001,2]
[329021077,1718064647578,-174.69456251,0.00027048,2]
[329021079,1718064647589,-322.26350227,0.00027078,2]
[329021081,1718064647601,-166.3496266,0.00027112,2]
[329021083,1718064647612,-150.4868812,0.00027125,2]
[329021085,1718064647623,-154.15727268,0.00027149,2]
[329021087,1718064647634,-322.26350227,0.00027271,2]
[329021089,1718064647646,-166.6666667,0.00027329,2]
[329021091,1718064647657,-588.29,0.0002737,2]
[329021093,1718064647668,-157.20854125,0.00027387,2]
[329021095,1718064647679,-806.82910337,0.0002739,2]
[329021097,1718064647690,-438.37773212,0.00027397,2]
[329021099,1718064647701,-150.0,0.00027397,2]
[329021101,1718064647712,-9344.35,0.00027397,2]
[329021103,1718064647723,-175.19,0.00027397,2]
[329021105,1718064647734,-150.0,0.00027397,2]
[329021107,1718064647744,-1077.57410633,0.000274,2]
[329021109,1718064647755,-322.26350227,0.00027463,2]
[329021111,1718064647766,-151.113496,0.00027464,2]
[329021113,1718064647777,-150.4868812,0.00027475,2]
[329021115,1718064647787,-174.69456251,0.00027491,2]
[329021117,1718064647798,-150.0,0.00027534,2]
[329021119,1718064647810,-215.742308,0.00027541,2]
[329021121,1718064647821,-1009.153901,0.00027541,2]
[329021123,1718064647832,-279.83933,0.00027541,2]
[329021125,1718064647843,-733.18794817,0.00027587,2]
[329021127,1718064647855,-150.4868812,0.0002762,2]
[329021129,1718064647866,-150.0,0.00027671,2]
[329021131,1718064647877,-150.78181346,0.00027688,2]
[329021133,1718064647887,-158.87102006,0.00027733,2]
[329021135,1718064647898,-390.33825859,0.00027757,2]
[329021137,1718064647909,-166.3496266,0.00027776,2]
[329021139,1718064647920,-150.0,0.00027798,2]
[329021141,1718064647931,-150.0,0.00027808,2]
[329021143,1718064647942,-154.15727268,0.0002784,2]
[329021145,1718064647953,-150.4868812,0.00027849,2]
[329021148,1718064647964,-1009.153901,0.00027885,2]
[329021150,1718064647974,-158.87102006,0.00027913,2]
[329021152,1718064647985,-158.87102006,0.00027934,2]
[329021154,1718064647996,-150.0,0.00027945,2]
[329021156,1718064648007,-975.0,0.00027968,2]
[329021157,1718064648018,-359.279,0.00027968,2]
[329021160,1718064648029,-1650.0,0.00027968,2]
[329021162,1718064648040,-1830.0,0.00027968,2]
[329021164,1718064648051,-1261.0,0.00027968,2]
[329021166,1718064648061,-616.0,0.00027968,2]
[329021168,1718064648072,-437.0,0.00027968,2]
[329021170,1718064648083,-150.964,0.00027968,2]
[329021172,1718064648094,-164.0,0.00027968,2]
[329021174,1718064648105,-445.0,0.00027968,2]
[329021176,1718064648120,-808.0,0.00027968,2]
[329021177,1718064648136,-546.0,0.00027968,2]
[329021178,1718064648151,-3171.0,0.00027968,2]
[329021179,1718064648166,-1303.0,0.00027968,2]
[329021180,1718064648177,-1853.0,0.00027968,2]
[329021181,1718064648191,-154.43235661,0.00027997,2]
[329021182,1718064648206,-468.61489945,0.00028,2]
[329021184,1718064648222,-1000.66,0.00028,7]
[329021186,1718064648236,-150.78181346,0.00028005,2]
[329021188,1718064648251,-158.87102006,0.00028025,2]
[329021191,1718064648267,-322.26350227,0.00028065,2]
[329021193,1718064648282,-500.0,0.00028122,2]
[329021196,1718064648298,-1000.0,0.00028122,2]
[329021197,1718064648311,-2700.0,0.00028122,2]
[329021200,1718064648325,-154.21526058,0.00028156,2]